[Event "FIDE-Online-Steinitz-Memorial-Women"]
[White "Khademalsharieh, Sarasadat"]
[Black "Lei, Tingjie"]
[Site "Internet"]
[Round "1.1"]
[Annotator "ChessBase"]
[Result "1/2-1/2"]
[Date "2020.05.15"]
[WhiteElo "2431"]
[BlackElo "2530"]
[PlyCount "128"]
[TimeControl "180+2"]

1. d4 Nf6 2. c4 {[%emt 0:0:5]} g6 {[%emt 0:0:4]} 3. g3 {[%emt 0:0:2]} c6 {[%emt 0:0:2]} 4. Bg2 {[%emt 0:0:4]} d5 {[%emt 0:0:2]} 5. e3 {[%emt 0:0:0]} Bg7 {[%emt 0:0:2]} 6. Ne2 {[%emt 0:0:2]} 0-0 {[%emt 0:0:1]} 7. 0-0 {[%emt 0:0:1]
} b6 {[%emt 0:0:27]} 8. b3 {[%emt 0:0:6]} Bb7 {[%emt 0:0:3]} 9. a4 {[%emt 0:0:8]} a5 {[%emt 0:0:19]} 10. Nbc3 {[%emt 0:0:10]} e6 {[%emt 0:0:4]
} 11. Ba3 {[%emt 0:0:2]} Re8 {[%emt 0:0:1]} 12. cxd5 {[%emt 0:0:21]
} exd5 {[%emt 0:0:2]} 13. Rc1 {[%emt 0:0:2]} Nbd7 {[%emt 0:0:0]} 14. Nf4 {[%emt 0:0:4]} Bf8 {[%emt 0:0:7]} 15. Bxf8 {[%emt 0:0:3]} Nxf8 {[%emt 0:0:1]} 16. Qd2 {[%emt 0:0:5]} Qd6 {[%emt 0:0:5]} 17. Rfd1 {[%emt 0:0:3]
} Rad8 {[%emt 0:0:2]} 18. Nd3 {[%emt 0:0:2]} N6d7 {[%emt 0:0:0]} 19. Qb2 {[%emt 0:0:3]} Ba6 {[%emt 0:0:11]} 20. Nf4 {[%emt 0:0:5]} Ne6 {[%emt 0:0:4]} 21. Nxe6 {[%emt 0:0:3]} Qxe6 {[%emt 0:0:3]} 22. Ne2 {[%emt 0:0:17]
} Qd6 {[%emt 0:0:5]} 23. Nf4 {[%emt 0:0:2]} Nf6 {[%emt 0:0:0]} 24. Nd3 {[%emt 0:0:4]} Bxd3 {[%emt 0:0:29]} 25. Rxd3 {[%emt 0:0:2]} Rc8 {[%emt 0:0:3]} 26. Rdc3 {[%emt 0:0:6]} Ne4 {[%emt 0:0:6]} 27. R3c2 {[%emt 0:0:6]
} h5 {[%emt 0:0:3]} 28. Rb1 {[%emt 0:0:15]} Qb4 {[%emt 0:0:0]} 29. Rbc1 {[%emt 0:0:13]} Qd6 {[%emt 0:0:2]} 30. Rb1 {[%emt 0:0:10]} Qb4 {[%emt 0:0:1]} 31. Qc1 {[%emt 0:0:1]} Qd6 {[%emt 0:0:17]} 32. Qe1 {[%emt 0:0:1]
} Ra8 {[%emt 0:0:17]} 33. b4 {[%emt 0:0:13]} axb4 {[%emt 0:0:0]} 34. Qxb4 {[%emt 0:0:5]} Qxb4 {[%emt 0:0:2]} 35. Rxb4 {[%emt 0:0:1]} c5 {[%emt 0:0:1]} 36. Rxb6 {[%emt 0:0:6]} cxd4 {[%emt 0:0:1]} 37. Bxe4 {[%emt 0:0:10]
} Rxe4 {[%emt 0:0:4]} 38. exd4 {[%emt 0:0:8]} Rxa4 {[%emt 0:0:0]} 39. Rd6 {[%emt 0:0:2]} Raxd4 {[%emt 0:0:3]} 40. h4 {[%emt 0:0:5]} Re1+ {[%emt 0:0:2]} 41. Kg2 {[%emt 0:0:1]} Rdd1 {[%emt 0:0:2]} 42. Rc7 {[%emt 0:0:3]
} Re6 {[%emt 0:0:3]} 43. Rd8+ {[%emt 0:0:6]} Kg7 {[%emt 0:0:0]} 44. Rcd7 {[%emt 0:0:1]} Re5 {[%emt 0:0:2]} 45. Rc7 {[%emt 0:0:12]} Rd2 {[%emt 0:0:2]} 46. Rc3 {[%emt 0:0:1]} Rf5 {[%emt 0:0:5]} 47. Rf3 {[%emt 0:0:1]
} Kf6 {[%emt 0:0:2]} 48. Rxf5+ {[%emt 0:0:5]} Kxf5 {[%emt 0:0:0]} 49. Re8 {[%emt 0:0:1]} f6 {[%emt 0:0:1]} 50. Kf3 {[%emt 0:0:2]} g5 {[%emt 0:0:1]} 51. hxg5 {[%emt 0:0:3]} fxg5 {[%emt 0:0:4]} 52. Rf8+ {[%emt 0:0:1]
} Kg6 {[%emt 0:0:2]} 53. Rg8+ {[%emt 0:0:4]} Kf6 {[%emt 0:0:0]} 54. Rf8+ {[%emt 0:0:1]} Kg7 {[%emt 0:0:2]} 55. Rf5 {[%emt 0:0:3]} Kg6 {[%emt 0:0:1]} 56. Rf8 {[%emt 0:0:2]} d4 {[%emt 0:0:2]} 57. Rd8 {[%emt 0:0:1]
} g4+ {[%emt 0:0:3]} 58. Kg2 {[%emt 0:0:5]} Kf5 {[%emt 0:0:0]} 59. Rd5+ {[%emt 0:0:2]} Kg6 {[%emt 0:0:5]} 60. Kf1 {[%emt 0:0:6]} d3 {[%emt 0:0:4]} 61. Ke1 {[%emt 0:0:1]} Re2+ {[%emt 0:0:1]} 62. Kf1 {[%emt 0:0:1]
} Rd2 {[%emt 0:0:1]} 63. Ke1 {[%emt 0:0:1]} Re2+ {[%emt 0:0:0]} 64. Kf1 {[%emt 0:0:1]} Rd2 {[%emt 0:0:1]} 1/2-1/2

[Event "FIDE-Online-Steinitz-Memorial-Women"]
[White "Abdumalik, Zhansaya"]
[Black "Stefanova, Antoaneta"]
[Site "Internet"]
[Round "1.1"]
[Annotator "ChessBase"]
[Result "1/2-1/2"]
[Date "2020.05.15"]
[WhiteElo "2409"]
[BlackElo "2485"]
[PlyCount "128"]
[TimeControl "180+2"]

1. e4 e5 2. Nf3 {[%emt 0:0:6]} Nc6 {[%emt 0:0:4]} 3. Bb5 {[%emt 0:0:2]} a6 {[%emt 0:0:1]} 4. Ba4 {[%emt 0:0:2]} g6 {[%emt 0:0:1]} 5. d4 {[%emt 0:0:0]} b5 {[%emt 0:0:3]} 6. Bb3 {[%emt 0:0:2]} exd4 {[%emt 0:0:1]} 7. Nxd4 {[%emt 0:0:7]} Bb7 {[%emt 0:0:2]} 8. a4 {[%emt 0:0:6]} Bg7 {[%emt 0:0:0]} 9. Nxc6 {[%emt 0:0:10]} dxc6 {[%emt 0:0:2]} 10. Qe2 {[%emt 0:0:9]} Qe7 {[%emt 0:0:4]} 11. 0-0 {[%emt 0:0:7]} Nf6 {[%emt 0:0:4]} 12. Re1 {[%emt 0:0:7]
} Nd7 {[%emt 0:0:9]} 13. c3 {[%emt 0:0:7]} 0-0 {[%emt 0:0:0]} 14. Bf4 {[%emt 0:0:8]} Nc5 {[%emt 0:0:2]} 15. Bc2 {[%emt 0:0:2]} Rfe8 {[%emt 0:0:15]} 16. Nd2 {[%emt 0:0:4]} Ne6 {[%emt 0:0:9]} 17. Be3 {[%emt 0:0:12]
} b4 {[%emt 0:0:1]} 18. cxb4 {[%emt 0:0:12]} Qxb4 {[%emt 0:0:0]} 19. Rab1 {[%emt 0:0:8]} a5 {[%emt 0:0:6]} 20. Qc4 {[%emt 0:0:6]} Nd4 {[%emt 0:0:7]} 21. Qxb4 {[%emt 0:0:18]} axb4 {[%emt 0:0:3]} 22. Bd1 {[%emt 0:0:1]
} c5 {[%emt 0:0:7]} 23. Rc1 {[%emt 0:0:5]} b3 {[%emt 0:0:12]
} 24. Rxc5 {[%emt 0:0:12]} Rxa4 {[%emt 0:0:6]} 25. Rxc7 {[%emt 0:0:5]} Rb4 {[%emt 0:0:27]} 26. Bxd4 {[%emt 0:0:10]} Bxd4 {[%emt 0:0:4]} 27. Bxb3 {[%emt 0:0:1]
} Rf8 {[%emt 0:0:6]} 28. Rc4 {[%emt 0:0:5]} Rxc4 {[%emt 0:0:0]} 29. Nxc4 {[%emt 0:0:1]} Ba6 {[%emt 0:0:4]} 30. Nd6 {[%emt 0:0:5]} Bxb2 {[%emt 0:0:7]} 31. f4 {[%emt 0:0:9]} Bd4+ {[%emt 0:0:6]} 32. Kh1 {[%emt 0:0:2]
} Kg7 {[%emt 0:0:4]} 33. e5 {[%emt 0:0:6]} Bc5 {[%emt 0:0:0]} 34. Ra1 {[%emt 0:0:8]} Bd3 {[%emt 0:0:9]} 35. Rd1 {[%emt 0:0:5]} Be2 {[%emt 0:0:2]} 36. Re1 {[%emt 0:0:3]} Bd3 {[%emt 0:0:2]} 37. h3 {[%emt 0:0:0]} Rb8 {[%emt 0:0:5]} 38. Bd5 {[%emt 0:0:4]} Rf8 {[%emt 0:0:17]} 39. Rd1 {[%emt 0:0:2]} Be2 {[%emt 0:0:3]} 40. Rb1 {[%emt 0:0:1]} h5 {[%emt 0:0:0]} 41. Rb7 {[%emt 0:0:3]} Bxd6 {[%emt 0:0:6]} 42. exd6 {[%emt 0:0:1]
} Kf6 {[%emt 0:0:0]} 43. Kg1 {[%emt 0:0:5]} Bd3 {[%emt 0:0:2]} 44. Kf2 {[%emt 0:0:3]
} Bf5 {[%emt 0:0:1]} 45. Ke3 {[%emt 0:0:3]} Be6 {[%emt 0:0:0]} 46. Be4 {[%emt 0:0:2]} Rd8 {[%emt 0:0:3]} 47. Rb6 {[%emt 0:0:1]} Rc8 {[%emt 0:0:2]} 48. Kd4 {[%emt 0:0:3]} Rc1 {[%emt 0:0:2]} 49. Bd3 {[%emt 0:0:3]
} Rd1 {[%emt 0:0:2]} 50. Ke3 {[%emt 0:0:5]} Re1+ {[%emt 0:0:0]} 51. Kd2 {[%emt 0:0:1]} Rg1 {[%emt 0:0:1]} 52. Be4 {[%emt 0:0:0]} Rf1 {[%emt 0:0:2]} 53. Bf3 {[%emt 0:0:1]} Ra1 {[%emt 0:0:3]} 54. Rb7 {[%emt 0:0:5]
} Ra6 {[%emt 0:0:3]} 55. d7 {[%emt 0:0:1]} Rd6+ {[%emt 0:0:0]} 56. Ke3 {[%emt 0:0:1]} Rxd7 {[%emt 0:0:1]} 57. Rxd7 {[%emt 0:0:1]} Bxd7 {[%emt 0:0:1]} 58. g4 {[%emt 0:0:1]} hxg4 {[%emt 0:0:3]} 59. hxg4 {[%emt 0:0:1]
} Kg7 {[%emt 0:0:2]} 60. g5 {[%emt 0:0:2]} Be6 {[%emt 0:0:0]} 61. Ke4 {[%emt 0:0:2]} Kf8 {[%emt 0:0:0]} 62. Ke5 {[%emt 0:0:1]} Ke7 {[%emt 0:0:1]} 63. Be4 {[%emt 0:0:0]} Bh3 {[%emt 0:0:2]} 64. Bd5 {[%emt 0:0:1]
} Bf5 {[%emt 0:0:3]} 1/2-1/2

[Event "FIDE-Online-Steinitz-Memorial-Women"]
[White "Stefanova, Antoaneta"]
[Black "Cori T., Deysi"]
[Site "Internet"]
[Round "2"]
[Annotator "ChessBase"]
[Result "1-0"]
[Date "2020.05.15"]
[WhiteElo "2485"]
[BlackElo "2391"]
[PlyCount "137"]
[TimeControl "180+2"]

1. d4 Nf6 2. Nf3 {[%emt 0:0:6]} e6 {[%emt 0:0:4]} 3. e3 {[%emt 0:0:2]} b6 {[%emt 0:0:3]} 4. Bd3 {[%emt 0:0:2]} Bb7 {[%emt 0:0:1]} 5. 0-0 {[%emt 0:0:0]} d5 {[%emt 0:0:3]} 6. c4 {[%emt 0:0:1]} Nbd7 {[%emt 0:0:2]} 7. cxd5 {[%emt 0:0:7]} exd5 {[%emt 0:0:2]} 8. Ne5 {[%emt 0:0:1]} Bd6 {[%emt 0:0:4]
} 9. f4 {[%emt 0:0:1]} c5 {[%emt 0:0:1]} 10. Nc3 {[%emt 0:0:0]} 0-0 {[%emt 0:0:2]} 11. Qf3 {[%emt 0:0:2]} Qe7 {[%emt 0:0:20]} 12. Bd2 {[%emt 0:0:5]} Rac8 {[%emt 0:0:19]} 13. Be1 {[%emt 0:0:11]} cxd4 {[%emt 0:0:0]} 14. exd4 {[%emt 0:0:2]} Ne4 {[%emt 0:0:24]} 15. Nxe4 {[%emt 0:0:19]
} dxe4 {[%emt 0:0:2]} 16. Bxe4 {[%emt 0:0:5]} Bxe4 {[%emt 0:0:2]} 17. Qxe4 {[%emt 0:0:1]} Nf6 {[%emt 0:0:2]} 18. Qf3 {[%emt 0:0:19]} Qe6 {[%emt 0:0:15]
} 19. Bh4 {[%emt 0:0:9]} Bxe5 {[%emt 0:0:9]} 20. dxe5 {[%emt 0:0:6]
} Nd5 {[%emt 0:0:2]} 21. Rae1 {[%emt 0:0:6]} Rc4 {[%emt 0:0:0]} 22. f5 {[%emt 0:0:8]} Qc6 {[%emt 0:0:4]} 23. Bg3 {[%emt 0:0:2]} Nb4 {[%emt 0:0:12]} 24. Qxc6 {[%emt 0:0:8]} Rxc6 {[%emt 0:0:1]} 25. a3 {[%emt 0:0:2]
} Nd3 {[%emt 0:0:2]} 26. Re2 {[%emt 0:0:1]} Re8 {[%emt 0:0:0]} 27. Rd1 {[%emt 0:0:9]} Nc5 {[%emt 0:0:3]} 28. h3 {[%emt 0:0:14]} h5 {[%emt 0:0:4]
} 29. b4 {[%emt 0:0:4]} Na4 {[%emt 0:0:2]} 30. Rd7 {[%emt 0:0:0]} a5 {[%emt 0:0:3]} 31. bxa5 {[%emt 0:0:3]} bxa5 {[%emt 0:0:2]} 32. Ra7 {[%emt 0:0:2]} Rc1+ {[%emt 0:0:9]} 33. Kh2 {[%emt 0:0:2]} Nc3 {[%emt 0:0:2]
} 34. Re3 {[%emt 0:0:6]} Nb5 {[%emt 0:0:28]} 35. Rxa5 {[%emt 0:0:5]
} Nd4 {[%emt 0:0:1]} 36. e6 {[%emt 0:0:14]} fxe6 {[%emt 0:0:0]} 37. fxe6 {[%emt 0:0:1]} Nxe6 {[%emt 0:0:3]} 38. Rxh5 {[%emt 0:0:5]} Kf7 {[%emt 0:0:5]} 39. Rf5+ {[%emt 0:0:2]} Kg6 {[%emt 0:0:1]} 40. Rfe5 {[%emt 0:0:2]
} Kf6 {[%emt 0:0:4]} 41. Bh4+ {[%emt 0:0:5]} Kf7 {[%emt 0:0:0]} 42. a4 {[%emt 0:0:2]} Rc4 {[%emt 0:0:3]} 43. R5e4 {[%emt 0:0:5]} Rxe4 {[%emt 0:0:1]} 44. Rxe4 {[%emt 0:0:1]} Ra8 {[%emt 0:0:1]} 45. Be1 {[%emt 0:0:3]
} Nc5 {[%emt 0:0:3]} 46. Rf4+ {[%emt 0:0:1]} Ke6 {[%emt 0:0:0]} 47. a5 {[%emt 0:0:2]} Nd3 {[%emt 0:0:1]} 48. Rf1 {[%emt 0:0:7]} g6 {[%emt 0:0:6]
} 49. Bd2 {[%emt 0:0:3]} Ne5 {[%emt 0:0:2]} 50. Ra1 {[%emt 0:0:0]} Ra6 {[%emt 0:0:1]} 51. Bc3 {[%emt 0:0:2]} Nc4 {[%emt 0:0:1]} 52. g4 {[%emt 0:0:2]} Kd5 {[%emt 0:0:2]} 53. Kg3 {[%emt 0:0:3]} Ke4 {[%emt 0:0:0]} 54. h4 {[%emt 0:0:2]} Ne3 {[%emt 0:0:1]} 55. Rb1 {[%emt 0:0:14]} Kd3 {[%emt 0:0:2]} 56. Be1 {[%emt 0:0:3]} Rf6 {[%emt 0:0:1]} 57. Bf2 {[%emt 0:0:6]
} Nxg4 {[%emt 0:0:4]} 58. Kxg4 {[%emt 0:0:2]} Rxf2 {[%emt 0:0:0]} 59. Ra1 {[%emt 0:0:2]} Rg2+ {[%emt 0:0:4]} 60. Kf4 {[%emt 0:0:2]} Rh2 {[%emt 0:0:2]} 61. Kg5 {[%emt 0:0:3]} Rg2+ {[%emt 0:0:1]} 62. Kf4 {[%emt 0:0:3]
} Rh2 {[%emt 0:0:2]} 63. Kg3 {[%emt 0:0:2]} Rc2 {[%emt 0:0:0]} 64. a6 {[%emt 0:0:2]} Rc8 {[%emt 0:0:1]} 65. a7 {[%emt 0:0:1]} Ra8 {[%emt 0:0:1]
} 66. Kg4 {[%emt 0:0:1]} Kc3 {[%emt 0:0:3]} 67. Kg5 {[%emt 0:0:0]} Kb2 {[%emt 0:0:0]} 68. Ra6 {[%emt 0:0:2]} Kb3 {[%emt 0:0:2]} 69. Kxg6 {[%emt 0:0:1]} 1-0

[Event "FIDE-Online-Steinitz-Memorial-Women"]
[White "Abdumalik, Zhansaya"]
[Black "Sebag, Marie"]
[Site "Internet"]
[Round "3"]
[Annotator "ChessBase"]
[Result "0-1"]
[Date "2020.05.15"]
[WhiteElo "2409"]
[BlackElo "2482"]
[PlyCount "124"]
[TimeControl "180+2"]

1. e4 c5 2. Nf3 {[%emt 0:0:4]} d6 {[%emt 0:0:4]} 3. d4 {[%emt 0:0:1]} cxd4 {[%emt 0:0:1]} 4. Nxd4 {[%emt 0:0:0]} Nf6 {[%emt 0:0:1]} 5. Nc3 {[%emt 0:0:1]
} a6 {[%emt 0:0:1]} 6. h3 {[%emt 0:0:1]} e5 {[%emt 0:0:1]} 7. Nde2 {[%emt 0:0:1]} h5 {[%emt 0:0:1]} 8. g3 {[%emt 0:0:1]} Be7 {[%emt 0:0:1]
} 9. Bg2 {[%emt 0:0:2]} Nbd7 {[%emt 0:0:4]} 10. a4 {[%emt 0:0:0]} b6 {[%emt 0:0:1]} 11. 0-0 {[%emt 0:0:9]} Bb7 {[%emt 0:0:2]} 12. Bg5 {[%emt 0:0:10]} Rc8 {[%emt 0:0:2]} 13. Qd2 {[%emt 0:0:8]} 0-0 {[%emt 0:0:16]
} 14. Rad1 {[%emt 0:0:5]} Qc7 {[%emt 0:0:1]} 15. Kh2 {[%emt 0:0:11]
} Rfe8 {[%emt 0:0:22]} 16. f4 {[%emt 0:0:12]} b5 {[%emt 0:0:0]} 17. axb5 {[%emt 0:0:23]} axb5 {[%emt 0:0:1]} 18. Nxb5 {[%emt 0:0:14]} Qxc2 {[%emt 0:0:4]} 19. Nbc3 {[%emt 0:0:4]} Qxd2 {[%emt 0:0:23]} 20. Rxd2 {[%emt 0:0:2]} Rc4 {[%emt 0:0:2]} 21. fxe5 {[%emt 0:0:27]} dxe5 {[%emt 0:0:0]} 22. Rf5 {[%emt 0:0:26]} g6 {[%emt 0:0:35]} 23. Bxf6 {[%emt 0:0:12]} Nxf6 {[%emt 0:0:24]} 24. Rxe5 {[%emt 0:0:1]} Kf8 {[%emt 0:0:1]} 25. Nf4 {[%emt 0:0:5]
} Rb4 {[%emt 0:0:3]} 26. Nfd5 {[%emt 0:0:19]} Nxd5 {[%emt 0:0:0]} 27. exd5 {[%emt 0:0:2]} Bd6 {[%emt 0:0:2]} 28. Rxe8+ {[%emt 0:0:0]} Kxe8 {[%emt 0:0:1]} 29. Ne4 {[%emt 0:0:0]} Be5 {[%emt 0:0:2]} 30. h4 {[%emt 0:0:7]} Kd8 {[%emt 0:0:3]} 31. Nc5 {[%emt 0:0:2]} Bc8 {[%emt 0:0:0]} 32. b3 {[%emt 0:0:4]} Bd6 {[%emt 0:0:2]} 33. Ne4 {[%emt 0:0:3]} Be5 {[%emt 0:0:1]} 34. Rf2 {[%emt 0:0:5]} Bf5 {[%emt 0:0:1]} 35. Re2 {[%emt 0:0:5]
} Rd4 {[%emt 0:0:3]} 36. Ng5 {[%emt 0:0:4]} Rxh4+ {[%emt 0:0:0]} 37. Kg1 {[%emt 0:0:1]} Bxg3 {[%emt 0:0:2]} 38. Nxf7+ {[%emt 0:0:0]} Kd7 {[%emt 0:0:1]} 39. Ne5+ {[%emt 0:0:2]} Bxe5 {[%emt 0:0:2]} 40. Rxe5 {[%emt 0:0:2]} Kd6 {[%emt 0:0:1]} 41. Re3 {[%emt 0:0:2]} Rg4 {[%emt 0:0:1]
} 42. Kf2 {[%emt 0:0:1]} Rd4 {[%emt 0:0:1]} 43. Rc3 {[%emt 0:0:0]} Rd2+ {[%emt 0:0:2]} 44. Kg1 {[%emt 0:0:4]} h4 {[%emt 0:0:1]} 45. b4 {[%emt 0:0:3]} Rb2 {[%emt 0:0:2]} 46. Rc4 {[%emt 0:0:6]} g5 {[%emt 0:0:0]} 47. Rc6+ {[%emt 0:0:1]} Ke5 {[%emt 0:0:1]} 48. d6 {[%emt 0:0:1]} Rxb4 {[%emt 0:0:2]} 49. Rc5+ {[%emt 0:0:1]} Kf6 {[%emt 0:0:2]} 50. Rc7 {[%emt 0:0:2]
} Rd4 {[%emt 0:0:1]} 51. Rc6 {[%emt 0:0:0]} Ke5 {[%emt 0:0:0]} 52. Rc5+ {[%emt 0:0:2]} Kf4 {[%emt 0:0:2]} 53. Rd5 {[%emt 0:0:3]} Rxd5 {[%emt 0:0:1]} 54. Bxd5 {[%emt 0:0:0]} Ke5 {[%emt 0:0:2]} 55. Bf3 {[%emt 0:0:5]
} Kxd6 {[%emt 0:0:1]} 56. Kg2 {[%emt 0:0:0]} Ke5 {[%emt 0:0:0]} 57. Kh2 {[%emt 0:0:2]} Kf4 {[%emt 0:0:1]} 58. Bc6 {[%emt 0:0:2]} g4 {[%emt 0:0:2]} 59. Bg2 {[%emt 0:0:2]} g3+ {[%emt 0:0:2]} 60. Kg1 {[%emt 0:0:1]
} h3 {[%emt 0:0:1]} 61. Bf1 {[%emt 0:0:3]} Bg4 {[%emt 0:0:0]} 62. Kh1 {[%emt 0:0:2]} Bf3+ {[%emt 0:0:2]} 0-1

[Event "FIDE-Online-Steinitz-Memorial-Women"]
[White "Cori T., Deysi"]
[Black "Kosteniuk, Alexandra"]
[Site "Internet"]
[Round "3"]
[Annotator "ChessBase"]
[Result "0-1"]
[Date "2020.05.15"]
[WhiteElo "2391"]
[BlackElo "2521"]
[PlyCount "120"]
[TimeControl "180+2"]

1. d4 Nf6 2. c4 {[%emt 0:0:5]} e6 {[%emt 0:0:4]} 3. Nf3 {[%emt 0:0:2]} b6 {[%emt 0:0:1]} 4. g3 {[%emt 0:0:2]} Bb7 {[%emt 0:0:1]} 5. Bg2 {[%emt 0:0:0]} Be7 {[%emt 0:0:1]} 6. 0-0 {[%emt 0:0:1]} 0-0 {[%emt 0:0:1]} 7. Nc3 {[%emt 0:0:4]} Ne4 {[%emt 0:0:1]} 8. Qc2 {[%emt 0:0:2]} Nxc3 {[%emt 0:0:30]
} 9. Qxc3 {[%emt 0:0:4]} c5 {[%emt 0:0:5]} 10. dxc5 {[%emt 0:0:0]} bxc5 {[%emt 0:0:6]} 11. Rd1 {[%emt 0:0:1]} Qb6 {[%emt 0:0:20]} 12. Bg5 {[%emt 0:0:31]} f6 {[%emt 0:0:8]} 13. Bf4 {[%emt 0:0:9]} d5 {[%emt 0:0:0]} 14. cxd5 {[%emt 0:0:3]} exd5 {[%emt 0:0:3]} 15. Nh4 {[%emt 0:0:9]
} Rd8 {[%emt 0:0:10]} 16. Nf5 {[%emt 0:0:5]} Bf8 {[%emt 0:0:1]} 17. Rac1 {[%emt 0:0:24]
} Na6 {[%emt 0:0:14]} 18. h4 {[%emt 0:0:32]} Nb4 {[%emt 0:0:0]} 19. Ra1 {[%emt 0:0:21]} Qe6 {[%emt 0:0:16]} 20. Ne3 {[%emt 0:0:29]} d4 {[%emt 0:0:10]} 21. Qc4 {[%emt 0:0:1]} Qxc4 {[%emt 0:0:4]} 22. Nxc4 {[%emt 0:0:1]
} Bxg2 {[%emt 0:0:0]} 23. Kxg2 {[%emt 0:0:1]} Nd5 {[%emt 0:0:0]} 24. Bd2 {[%emt 0:0:2]} Rab8 {[%emt 0:0:2]} 25. Rac1 {[%emt 0:0:4]
} Re8 {[%emt 0:0:4]} 26. Kf1 {[%emt 0:0:3]} Re6 {[%emt 0:0:6]} 27. b3 {[%emt 0:0:7]
} Rbe8 {[%emt 0:0:3]} 28. Re1 {[%emt 0:0:1]} Ra6 {[%emt 0:0:0]} 29. a4 {[%emt 0:0:7]} Rb8 {[%emt 0:0:3]} 30. Rb1 {[%emt 0:0:2]} g6 {[%emt 0:0:7]
} 31. e4 {[%emt 0:0:1]} dxe3 {[%emt 0:0:5]} 32. Bxe3 {[%emt 0:0:2]
} Re6 {[%emt 0:0:12]} 33. Bd2 {[%emt 0:0:4]} Rxe1+ {[%emt 0:0:0]} 34. Bxe1 {[%emt 0:0:3]} Kf7 {[%emt 0:0:2]} 35. Rd1 {[%emt 0:0:2]} Ke6 {[%emt 0:0:1]} 36. Rd3 {[%emt 0:0:2]} f5 {[%emt 0:0:3]} 37. f3 {[%emt 0:0:1]
} Nb6 {[%emt 0:0:13]} 38. Na5 {[%emt 0:0:2]} Rc8 {[%emt 0:0:0]} 39. Bf2 {[%emt 0:0:2]} c4 {[%emt 0:0:1]} 40. bxc4 {[%emt 0:0:2]} Nxc4 {[%emt 0:0:2]} 41. Nxc4 {[%emt 0:0:3]} Rxc4 {[%emt 0:0:1]} 42. Bxa7 {[%emt 0:0:1]} Rxa4 {[%emt 0:0:1]} 43. Be3 {[%emt 0:0:2]} Ra2 {[%emt 0:0:0]} 44. Rb3 {[%emt 0:0:2]} Bd6 {[%emt 0:0:4]} 45. Bf2 {[%emt 0:0:1]} h6 {[%emt 0:0:3]} 46. Rb6 {[%emt 0:0:2]} Kd5 {[%emt 0:0:1]} 47. Rb5+ {[%emt 0:0:4]
} Ke6 {[%emt 0:0:1]} 48. Rb6 {[%emt 0:0:2]} Kd5 {[%emt 0:0:0]} 49. Rb5+ {[%emt 0:0:0]} Kc4 {[%emt 0:0:1]} 50. Rb6 {[%emt 0:0:2]} Rxf2+ {[%emt 0:0:1]} 51. Kxf2 {[%emt 0:0:3]} Bc5+ {[%emt 0:0:1]} 52. Ke2 {[%emt 0:0:2]} Bxb6 {[%emt 0:0:0]} 53. g4 {[%emt 0:0:0]} Kd5 {[%emt 0:0:0]} 54. h5 {[%emt 0:0:2]} g5 {[%emt 0:0:1]} 55. gxf5 {[%emt 0:0:1]} Ke5 {[%emt 0:0:0]} 56. Kf1 {[%emt 0:0:1]} Kxf5 {[%emt 0:0:1]} 57. Kg2 {[%emt 0:0:1]
} Kf4 {[%emt 0:0:1]} 58. Kh2 {[%emt 0:0:2]} Kxf3 {[%emt 0:0:0]} 59. Kh3 {[%emt 0:0:0]} g4+ {[%emt 0:0:2]} 60. Kh4 {[%emt 0:0:2]} Bd8# {[%emt 0:0:4]} 0-1

[Event "FIDE-Online-Steinitz-Memorial-Women"]
[White "Kosteniuk, Alexandra"]
[Black "Paehtz, Elisabeth"]
[Site "Internet"]
[Round "4"]
[Annotator "ChessBase"]
[Result "1-0"]
[Date "2020.05.15"]
[WhiteElo "2521"]
[BlackElo "2396"]
[PlyCount "89"]
[TimeControl "180+2"]

1. e4 c5 2. c3 {[%emt 0:0:4]} d5 {[%emt 0:0:5]} 3. exd5 {[%emt 0:0:1]} Qxd5 {[%emt 0:0:1]} 4. d4 {[%emt 0:0:0]} g6 {[%emt 0:0:1]} 5. Nf3 {[%emt 0:0:3]
} Bg7 {[%emt 0:0:2]} 6. Be2 {[%emt 0:0:9]} cxd4 {[%emt 0:0:0]} 7. cxd4 {[%emt 0:0:3]} Nf6 {[%emt 0:0:3]} 8. Nc3 {[%emt 0:0:2]} Qd8 {[%emt 0:0:6]} 9. 0-0 {[%emt 0:0:9]} 0-0 {[%emt 0:0:2]} 10. h3 {[%emt 0:0:0]} Nbd7 {[%emt 0:0:2]} 11. Ne5 {[%emt 0:0:15]} Nb6 {[%emt 0:0:5]} 12. Bf3 {[%emt 0:0:3]} Nfd5 {[%emt 0:0:15]} 13. a4 {[%emt 0:0:1]} Nc7 {[%emt 0:0:12]
} 14. a5 {[%emt 0:0:6]} Nbd5 {[%emt 0:0:1]} 15. a6 {[%emt 0:0:0]} e6 {[%emt 0:0:35]} 16. axb7 {[%emt 0:0:29]} Bxb7 {[%emt 0:0:2]} 17. Ne4 {[%emt 0:0:1]} Qe7 {[%emt 0:0:10]} 18. Re1 {[%emt 0:0:7]} f6 {[%emt 0:0:0]} 19. Nd3 {[%emt 0:0:11]} Bc6 {[%emt 0:0:15]} 20. Nec5 {[%emt 0:0:3]} Qf7 {[%emt 0:0:5]} 21. Nf4 {[%emt 0:0:9]} Rfe8 {[%emt 0:0:5]} 22. Bg4 {[%emt 0:0:23]
} Nxf4 {[%emt 0:0:11]} 23. Bxf4 {[%emt 0:0:2]} f5 {[%emt 0:0:0]} 24. Bf3 {[%emt 0:0:35]} Bxf3 {[%emt 0:0:2]} 25. Qxf3 {[%emt 0:0:1]} Bxd4 {[%emt 0:0:8]} 26. Nb7 {[%emt 0:0:1]} Qg7 {[%emt 0:0:13]} 27. Qc6 {[%emt 0:0:21]
} e5 {[%emt 0:0:5]} 28. Nd6 {[%emt 0:0:4]} Rf8 {[%emt 0:0:0]} 29. Qc4+ {[%emt 0:0:2]} Kh8 {[%emt 0:0:1]} 30. Bh6 {[%emt 0:0:5]} Qxh6 {[%emt 0:0:4]} 31. Nf7+ {[%emt 0:0:1]} Rxf7 {[%emt 0:0:2]} 32. Qxf7 {[%emt 0:0:0]} Qg7 {[%emt 0:0:4]} 33. Qb3 {[%emt 0:0:1]} Rf8 {[%emt 0:0:0]} 34. Rac1 {[%emt 0:0:2]} Qf7 {[%emt 0:0:5]} 35. Qb7 {[%emt 0:0:3]} Ne6 {[%emt 0:0:3]} 36. Qb5 {[%emt 0:0:4]} Nf4 {[%emt 0:0:1]} 37. Rxe5 {[%emt 0:0:1]
} Qg7 {[%emt 0:0:7]} 38. Re8 {[%emt 0:0:4]} h5 {[%emt 0:0:0]} 39. Rcc8 {[%emt 0:0:4]} Rxe8 {[%emt 0:0:1]} 40. Rxe8+ {[%emt 0:0:2]} Kh7 {[%emt 0:0:1]} 41. Qb4 {[%emt 0:0:3]} Nd5 {[%emt 0:0:5]} 42. Qd6 {[%emt 0:0:2]
} Qb7 {[%emt 0:0:3]} 43. Rd8 {[%emt 0:0:2]} Nf6 {[%emt 0:0:0]} 44. Qxd4 {[%emt 0:0:2]} Kh6 {[%emt 0:0:2]} 45. Qxf6 {[%emt 0:0:2]} 1-0

[Event "FIDE-Online-Steinitz-Memorial-Women"]
[White "Sebag, Marie"]
[Black "Tan, Zhongyi"]
[Site "Internet"]
[Round "4"]
[Annotator "ChessBase"]
[Result "1-0"]
[Date "2020.05.15"]
[WhiteElo "2482"]
[BlackElo "2510"]
[PlyCount "73"]
[TimeControl "180+2"]

1. e4 e5 2. Nf3 {[%emt 0:0:4]} Nc6 {[%emt 0:0:4]} 3. Bb5 {[%emt 0:0:1]} Nf6 {[%emt 0:0:2]} 4. 0-0 {[%emt 0:0:5]} Nxe4 {[%emt 0:0:2]} 5. Re1 {[%emt 0:0:1]
} Nd6 {[%emt 0:0:1]} 6. Nxe5 {[%emt 0:0:2]} Be7 {[%emt 0:0:0]} 7. Bf1 {[%emt 0:0:3]} Nxe5 {[%emt 0:0:2]} 8. Rxe5 {[%emt 0:0:1]} 0-0 {[%emt 0:0:0]} 9. d4 {[%emt 0:0:1]} Bf6 {[%emt 0:0:3]} 10. Re1 {[%emt 0:0:0]} Re8 {[%emt 0:0:6]} 11. c3 {[%emt 0:0:13]} Rxe1 {[%emt 0:0:5]} 12. Qxe1 {[%emt 0:0:2]} Ne8 {[%emt 0:0:20]} 13. Bf4 {[%emt 0:0:4]} d5 {[%emt 0:0:2]
} 14. Nd2 {[%emt 0:0:2]} c6 {[%emt 0:0:11]} 15. Bd3 {[%emt 0:0:0]} g6 {[%emt 0:0:2]} 16. Nf3 {[%emt 0:0:2]} Ng7 {[%emt 0:0:3]} 17. Qe2 {[%emt 0:0:6]} Bf5 {[%emt 0:0:2]} 18. Bxf5 {[%emt 0:0:1]} Nxf5 {[%emt 0:0:2]
} 19. Re1 {[%emt 0:0:2]} Nd6 {[%emt 0:0:6]} 20. Ne5 {[%emt 0:0:0]} Bg7 {[%emt 0:0:28]} 21. h3 {[%emt 0:0:13]} Ne4 {[%emt 0:0:4]} 22. f3 {[%emt 0:0:24]} Nd6 {[%emt 0:0:2]} 23. Nd3 {[%emt 0:0:9]} Nf5 {[%emt 0:0:0]} 24. g4 {[%emt 0:0:8]} Nh4 {[%emt 0:0:10]} 25. Bg3 {[%emt 0:0:2]} Qf6 {[%emt 0:0:28]} 26. f4 {[%emt 0:0:6]} g5 {[%emt 0:0:3]} 27. Bxh4 {[%emt 0:0:14]
} gxh4 {[%emt 0:0:2]} 28. Qe7 {[%emt 0:0:2]} Qg6 {[%emt 0:0:0]} 29. f5 {[%emt 0:0:12]} Qh6 {[%emt 0:0:1]} 30. Qxb7 {[%emt 0:0:10]} Rf8 {[%emt 0:0:9]} 31. Qe7 {[%emt 0:0:5]} Qd2 {[%emt 0:0:3]} 32. Qe3 {[%emt 0:0:9]
} Qc2 {[%emt 0:0:3]} 33. Qe2 {[%emt 0:0:5]} Qa4 {[%emt 0:0:0]} 34. a3 {[%emt 0:0:6]} Bf6 {[%emt 0:0:6]} 35. Qd2 {[%emt 0:0:5]} Kh8 {[%emt 0:0:5]} 36. Nc5 {[%emt 0:0:4]} Qa5 {[%emt 0:0:25]} 37. Nd7 {[%emt 0:0:3]
} 1-0